[Event "Torneo Nuevo Centro. Jornada 11"]
[Site "Chess.com"]
[Date "2020.08.28"]
[Round "5"]
[White "Macias Pino, Diego"]
[Black "Yuste Valenzuela, Alejandro"]
[Result "1-0"]
[WhiteElo "2257"]
[BlackElo "1879"]
[TimeControl "180+2"]
[EndTime "11:21:02 PDT"]
[Termination "Victoria de adivinaquiensoy por abandono"]

1. d4 {[%clk 0:03:01.9]} 1... Nf6 {[%clk 0:03:01.5]} 2. Nf3 {[%clk 0:03:03]}
2... g6 {[%clk 0:03:02]} 3. Bf4 {[%clk 0:03:02.5]} 3... Bg7 {[%clk 0:03:02.7]}
4. c3 {[%clk 0:03:01.7]} 4... O-O {[%clk 0:03:03.5]} 5. Nbd2 {[%clk 0:03:02.2]}
5... d5 {[%clk 0:03:04.6]} 6. e3 {[%clk 0:03:01]} 6... c6 {[%clk 0:03:00.8]} 7.
Bd3 {[%clk 0:03:01.4]} 7... Nbd7 {[%clk 0:02:51.1]} 8. O-O {[%clk 0:02:59.2]}
8... Nb6 {[%clk 0:02:48]} 9. e4 {[%clk 0:02:56.7]} 9... dxe4 {[%clk 0:02:48.4]}
10. Nxe4 {[%clk 0:02:58.6]} 10... Nxe4 {[%clk 0:02:46.9]} 11. Bxe4 {[%clk
0:02:58.1]} 11... Nd5 {[%clk 0:02:46.3]} 12. Bd2 {[%clk 0:02:56.1]} 12... Re8
{[%clk 0:02:43.1]} 13. Re1 {[%clk 0:02:47.6]} 13... Be6 {[%clk 0:02:27.7]} 14.
b3 {[%clk 0:02:44.5]} 14... b5 {[%clk 0:02:27.3]} 15. Bc2 {[%clk 0:02:42.5]}
15... Nb6 {[%clk 0:02:20.8]} 16. Rxe6 {[%clk 0:02:08]} 16... fxe6 {[%clk
0:02:20.7]} 17. Ng5 {[%clk 0:02:07.3]} 17... Qd7 {[%clk 0:02:06.2]} 18. Nxh7
{[%clk 0:01:08.8]} 18... Nd5 {[%clk 0:00:40.2]} 19. Bxg6 {[%clk 0:00:54.2]}
19... Red8 {[%clk 0:00:28.5]} 20. Qh5 {[%clk 0:00:53.9]} 20... Nf6 {[%clk
0:00:28.7]} 21. Nxf6+ {[%clk 0:00:54.5]} 21... exf6 {[%clk 0:00:30.6]} 22. Re1
{[%clk 0:00:36.9]} 22... e5 {[%clk 0:00:26.3]} 23. Bc1 {[%clk 0:00:28.6]} 23...
exd4 {[%clk 0:00:12.6]} 24. Qh7+ {[%clk 0:00:25.2]} 24... Kf8 {[%clk 0:00:13.3]}
25. Ba3+ {[%clk 0:00:19.9]} 25... b4 {[%clk 0:00:06.4]} 26. Bxb4+ {[%clk
0:00:20.6]} 1

[Event "Torneo Nuevo Centro. Jornada 11"]
[Site "Chess.com"]
[Date "2020.08.28"]
[Round "5"]
[White "Gutierrez Lacambra, Jose Antonio"]
[Black "Perrot, Fabien "]
[Result "0-1"]
[WhiteElo "1365"]
[BlackElo "1172"]
[TimeControl "180+2"]
[EndTime "11:21:05 PDT"]
[Termination "Victoria de InspiredMinds por tiempo"]

1. d4 {[%clk 0:03:01.9]} 1... d5 {[%clk 0:02:59]} 2. Bf4 {[%clk 0:03:01.2]} 2...
Nf6 {[%clk 0:02:57.5]} 3. Nf3 {[%clk 0:03:02]} 3... Bf5 {[%clk 0:02:50.4]} 4. h3
{[%clk 0:03:02.5]} 4... e6 {[%clk 0:02:48.5]} 5. g4 {[%clk 0:02:59.4]} 5... Be4
{[%clk 0:02:45.7]} 6. Nbd2 {[%clk 0:02:55]} 6... Bd6 {[%clk 0:02:38.2]} 7. Nxe4
{[%clk 0:02:33.9]} 7... dxe4 {[%clk 0:02:34.8]} 8. Ne5 {[%clk 0:02:30.5]} 8...
Bxe5 {[%clk 0:02:30.8]} 9. dxe5 {[%clk 0:02:24]} 9... Qxd1+ {[%clk 0:02:14.7]}
10. Rxd1 {[%clk 0:02:23.7]} 10... Nd5 {[%clk 0:02:08.6]} 11. Bg3 {[%clk
0:02:17.3]} 11... O-O {[%clk 0:02:02.5]} 12. a3 {[%clk 0:02:08.5]} 12... Nd7
{[%clk 0:01:56.5]} 13. Bg2 {[%clk 0:02:09.2]} 13... Rad8 {[%clk 0:01:47.6]} 14.
Bxe4 {[%clk 0:02:00.8]} 14... Nc5 {[%clk 0:01:46.3]} 15. Bg2 {[%clk 0:01:42.7]}
15... a5 {[%clk 0:01:32.4]} 16. c4 {[%clk 0:01:10]} 16... Nb6 {[%clk 0:01:25.8]}
17. b4 {[%clk 0:01:00.9]} 17... Rxd1+ {[%clk 0:01:21]} 18. Kxd1 {[%clk
0:01:00.8]} 18... axb4 {[%clk 0:01:17.2]} 19. axb4 {[%clk 0:01:02.7]} 19... Na6
{[%clk 0:01:14.9]} 20. Bxb7 {[%clk 0:00:42.5]} 20... Nxb4 {[%clk 0:01:15.3]} 21.
c5 {[%clk 0:00:35.1]} 21... Rd8+ {[%clk 0:01:07.8]} 22. Kc1 {[%clk 0:00:32.1]}
22... Nc4 {[%clk 0:01:06.1]} 23. Rd1 {[%clk 0:00:12.1]} 23... Na2+ {[%clk
0:00:50.5]} 24. Kc2 {[%clk 0:00:10.9]} 24... Na3+ {[%clk 0:00:47.7]} 25. Kb3
{[%clk 0:00:07.2]} 25... Rxd1 {[%clk 0:00:44.1]} 26. Kxa3 {[%clk 0:00:07.6]}
26... Nc3 {[%clk 0:00:41]} 27. f4 {[%clk 0:00:04.6]} 27... Nxe2 {[%clk
0:00:36.6]} 28. Bf3 {[%clk 0:00:02.9]} 28... Rd2 {[%clk 0:00:33.6]} 0

[Event "Torneo Nuevo Centro. Jornada 11"]
[Site "Chess.com"]
[Date "2020.08.28"]
[Round "5"]
[White "Cayon Pelaez, Pablo"]
[Black "Castellano López, Javier"]
[Result "1-0"]
[WhiteElo "1768"]
[BlackElo "1929"]
[TimeControl "180+2"]
[EndTime "11:21:27 PDT"]
[Termination "Victoria de Ataquedefinitivo por tiempo"]

1. d4 {[%clk 0:03:01]} 1... Nf6 {[%clk 0:02:59]} 2. Nf3 {[%clk 0:03:01.6]} 2...
d5 {[%clk 0:02:59.7]} 3. Bf4 {[%clk 0:03:01.5]} 3... e6 {[%clk 0:02:57]} 4. e3
{[%clk 0:03:01.1]} 4... Bd6 {[%clk 0:02:58.4]} 5. Bg3 {[%clk 0:03:01.8]} 5...
O-O {[%clk 0:02:55.1]} 6. c4 {[%clk 0:03:02.5]} 6... c6 {[%clk 0:02:26.8]} 7.
Nc3 {[%clk 0:03:00.3]} 7... b6 {[%clk 0:02:20.8]} 8. Qc2 {[%clk 0:02:52.1]} 8...
Bb7 {[%clk 0:02:16.5]} 9. cxd5 {[%clk 0:02:50.3]} 9... cxd5 {[%clk 0:02:01.5]}
10. Bd3 {[%clk 0:02:48.5]} 10... Na6 {[%clk 0:01:45]} 11. a3 {[%clk 0:02:47.6]}
11... Rc8 {[%clk 0:01:43.4]} 12. O-O {[%clk 0:02:46.6]} 12... Bxg3 {[%clk
0:01:42.3]} 13. hxg3 {[%clk 0:02:44.5]} 13... Ne4 {[%clk 0:01:41.5]} 14. Rac1
{[%clk 0:02:30.7]} 14... Nxc3 {[%clk 0:01:41.8]} 15. bxc3 {[%clk 0:02:30.1]}
15... Nb8 {[%clk 0:01:37.6]} 16. Bxh7+ {[%clk 0:02:30.1]} 16... Kh8 {[%clk
0:01:38.8]} 17. Bd3 {[%clk 0:02:30.9]} 17... Nd7 {[%clk 0:01:24.9]} 18. Qe2
{[%clk 0:02:31.2]} 18... g6 {[%clk 0:01:16.4]} 19. Nd2 {[%clk 0:02:10.8]} 19...
Kg7 {[%clk 0:01:13.5]} 20. f4 {[%clk 0:02:08]} 20... Nf6 {[%clk 0:01:06.6]} 21.
g4 {[%clk 0:02:03.9]} 21... Rh8 {[%clk 0:01:00.1]} 22. f5 {[%clk 0:01:56]} 22...
Ne4 {[%clk 0:00:44.1]} 23. Bxe4 {[%clk 0:01:40.1]} 23... dxe4 {[%clk 0:00:41.3]}
24. fxe6 {[%clk 0:01:19.1]} 24... fxe6 {[%clk 0:00:41.1]} 25. Qf2 {[%clk
0:01:14]} 25... Qe7 {[%clk 0:00:39.3]} 26. Qg3 {[%clk 0:01:04]} 26... Qg5 {[%clk
0:00:28.1]} 27. Rf4 {[%clk 0:00:59]} 27... Rcf8 {[%clk 0:00:21.4]} 28. Rcf1
{[%clk 0:00:59]} 28... Rxf4 {[%clk 0:00:17.4]} 29. Rxf4 {[%clk 0:01:00.9]} 29...
Rc8 {[%clk 0:00:17.4]} 30. Qf2 {[%clk 0:00:57.3]} 30... Qe7 {[%clk 0:00:10.9]}
31. g5 {[%clk 0:00:53.1]} 31... Rxc3 {[%clk 0:00:10.5]} 32. Nxe4 {[%clk
0:00:49.8]} 32... Bxe4 {[%clk 0:00:06.4]} 33. Rxe4 {[%clk 0:00:51.7]} 33... Rc1+
{[%clk 0:00:07.1]} 34. Kh2 {[%clk 0:00:52.5]} 34... Qxg5 {[%clk 0:00:07.7]} 35.
Qh4 {[%clk 0:00:50.1]} 35... Qf5 {[%clk 0:00:03.8]} 36. Rf4 {[%clk 0:00:44.8]}
1

[Event "Torneo Nuevo Centro. Jornada 11"]
[Site "Chess.com"]
[Date "2020.08.28"]
[Round "5"]
[White "Fenollar Jorda, Manolo"]
[Black "Garcia, Jhoel"]
[Result "1-0"]
[WhiteElo "2479"]
[BlackElo "2380"]
[TimeControl "180+2"]
[EndTime "11:21:52 PDT"]
[Termination "Victoria de Cucudrulu por abandono"]

1. d4 {[%clk 0:03:01.9]} 1... Nf6 {[%clk 0:02:57.5]} 2. Nf3 {[%clk 0:03:02.6]}
2... e6 {[%clk 0:02:58.5]} 3. e3 {[%clk 0:03:02.6]} 3... b6 {[%clk 0:02:54.5]}
4. Bd3 {[%clk 0:03:03.9]} 4... Bb7 {[%clk 0:02:55.9]} 5. Nbd2 {[%clk 0:03:05.2]}
5... d5 {[%clk 0:02:53.9]} 6. O-O {[%clk 0:03:05.8]} 6... Bd6 {[%clk 0:02:49.1]}
7. c3 {[%clk 0:03:05.3]} 7... Nbd7 {[%clk 0:02:46.6]} 8. Qe2 {[%clk 0:03:01.5]}
8... c5 {[%clk 0:02:46.6]} 9. e4 {[%clk 0:02:57.2]} 9... dxe4 {[%clk 0:02:41.8]}
10. Nxe4 {[%clk 0:02:59.1]} 10... Be7 {[%clk 0:01:54.7]} 11. Rd1 {[%clk
0:02:47.8]} 11... Qc7 {[%clk 0:01:45.1]} 12. Bg5 {[%clk 0:02:34.1]} 12... O-O
{[%clk 0:01:30.5]} 13. Bh4 {[%clk 0:02:17]} 13... Nd5 {[%clk 0:01:17.1]} 14. Bg3
{[%clk 0:02:12.5]} 14... Qc8 {[%clk 0:01:04.9]} 15. Bb5 {[%clk 0:01:56]} 15...
Rd8 {[%clk 0:00:59.5]} 16. Nd6 {[%clk 0:01:35.4]} 16... Bxd6 {[%clk 0:01:00]}
17. Bxd6 {[%clk 0:01:37.3]} 17... a6 {[%clk 0:00:58]} 18. Ba4 {[%clk 0:01:36.8]}
18... N7f6 {[%clk 0:00:55]} 19. dxc5 {[%clk 0:01:35.7]} 19... bxc5 {[%clk
0:00:48.2]} 20. Be5 {[%clk 0:01:35.3]} 20... Nh5 {[%clk 0:00:42.6]} 21. Ng5
{[%clk 0:00:54.1]} 21... Nhf4 {[%clk 0:00:23.7]} 22. Qg4 {[%clk 0:00:48.1]}
22... Ng6 {[%clk 0:00:21.8]} 23. Bg3 {[%clk 0:00:42.5]} 23... Nf6 {[%clk
0:00:22.3]} 24. Qe2 {[%clk 0:00:39.9]} 24... h6 {[%clk 0:00:19.5]} 25. Nf3
{[%clk 0:00:40.4]} 25... Rxd1+ {[%clk 0:00:19.8]} 26. Rxd1 {[%clk 0:00:40.6]}
26... Bc6 {[%clk 0:00:20.4]} 27. Bc2 {[%clk 0:00:40.8]} 27... Bd5 {[%clk
0:00:21.5]} 28. c4 {[%clk 0:00:40.6]} 28... Bxf3 {[%clk 0:00:21.9]} 29. Qxf3
{[%clk 0:00:41.2]} 29... Ne7 {[%clk 0:00:22.9]} 30. Bh4 {[%clk 0:00:39.4]} 30...
Nf5 {[%clk 0:00:19.7]} 31. Bxf6 {[%clk 0:00:39.6]} 31... gxf6 {[%clk 0:00:19.9]}
32. Bxf5 {[%clk 0:00:38.7]} 32... exf5 {[%clk 0:00:21.4]} 33. Rd5 {[%clk
0:00:39.8]} 33... Qe6 {[%clk 0:00:21.6]} 34. g3 {[%clk 0:00:37.4]} 34... Qe1+
{[%clk 0:00:21.5]} 35. Kg2 {[%clk 0:00:38.6]} 35... Qe4 {[%clk 0:00:23.4]} 36.
Rxf5 {[%clk 0:00:37.3]} 36... Qxf3+ {[%clk 0:00:24.5]} 37. Kxf3 {[%clk 0:00:38]}
37... Rb8 {[%clk 0:00:25.5]} 38. b3 {[%clk 0:00:38.3]} 38... Rc8 {[%clk
0:00:26.5]} 39. Rxf6 {[%clk 0:00:39]} 39... a5 {[%clk 0:00:25.8]} 40. Rxh6
{[%clk 0:00:38.6]} 40... Ra8 {[%clk 0:00:26.2]} 41. Rc6 {[%clk 0:00:38.4]} 41...
a4 {[%clk 0:00:28.1]} 42. Rxc5 {[%clk 0:00:38.4]} 42... a3 {[%clk 0:00:29.6]}
43. Rb5 {[%clk 0:00:36.6]} 43... Kg7 {[%clk 0:00:29.4]} 44. Rb4 {[%clk
0:00:36.4]} 44... Kf6 {[%clk 0:00:28.2]} 45. Ra4 {[%clk 0:00:37.3]} 45... Rd8
{[%clk 0:00:29.7]} 46. Rxa3 {[%clk 0:00:38]} 46... Kf5 {[%clk 0:00:30.6]} 47.
Ra5+ {[%clk 0:00:38.6]} 1

[Event "Torneo Nuevo Centro. Jornada 11"]
[Site "Chess.com"]
[Date "2020.08.28"]
[Round "5"]
[White "Birnoveanu, Petru"]
[Black "Pedros Viudes, Santiago"]
[Result "1-0"]
[WhiteElo "1717"]
[BlackElo "1910"]
[TimeControl "180+2"]
[EndTime "11:22:09 PDT"]
[Termination "Victoria de piculet por tiempo"]

1. e4 {[%clk 0:03:01.9]} 1... e6 {[%clk 0:02:59.3]} 2. Nf3 {[%clk 0:03:00.3]}
2... d5 {[%clk 0:03:00.3]} 3. Nc3 {[%clk 0:03:00.7]} 3... c5 {[%clk 0:02:56]} 4.
exd5 {[%clk 0:03:00]} 4... exd5 {[%clk 0:02:55.1]} 5. Bb5+ {[%clk 0:02:55.5]}
5... Nc6 {[%clk 0:02:49.7]} 6. d4 {[%clk 0:02:51.9]} 6... Nf6 {[%clk 0:02:36.4]}
7. Bg5 {[%clk 0:02:51]} 7... Be7 {[%clk 0:02:27.9]} 8. dxc5 {[%clk 0:02:45.2]}
8... O-O {[%clk 0:02:23.6]} 9. O-O {[%clk 0:02:38.7]} 9... Bg4 {[%clk
0:02:14.2]} 10. h3 {[%clk 0:02:34.6]} 10... Bxf3 {[%clk 0:02:02.1]} 11. Qxf3
{[%clk 0:02:31.9]} 11... h6 {[%clk 0:02:02.6]} 12. Bxf6 {[%clk 0:02:30.4]} 12...
Bxf6 {[%clk 0:02:04.5]} 13. Nxd5 {[%clk 0:02:23.4]} 13... Bxb2 {[%clk
0:02:00.1]} 14. Bxc6 {[%clk 0:02:20.6]} 14... Bxa1 {[%clk 0:01:43.5]} 15. Bxb7
{[%clk 0:02:16.7]} 15... Rb8 {[%clk 0:01:39.8]} 16. c6 {[%clk 0:02:17.1]} 16...
Be5 {[%clk 0:01:32.9]} 17. c4 {[%clk 0:02:08.9]} 17... Qa5 {[%clk 0:01:07.1]}
18. Qe2 {[%clk 0:01:55.7]} 18... Bd6 {[%clk 0:00:57.3]} 19. Qc2 {[%clk
0:01:36.9]} 19... Qc5 {[%clk 0:00:38.4]} 20. a4 {[%clk 0:01:20]} 20... f6 {[%clk
0:00:26.3]} 21. Rd1 {[%clk 0:01:09.5]} 21... Rf7 {[%clk 0:00:25.8]} 22. Qd3
{[%clk 0:01:05.8]} 22... Rbxb7 {[%clk 0:00:20]} 23. cxb7 {[%clk 0:01:05]} 23...
Rxb7 {[%clk 0:00:21.9]} 24. Nxf6+ {[%clk 0:00:59.7]} 24... gxf6 {[%clk 0:00:23]}
25. Qxd6 {[%clk 0:01:00.1]} 25... Qxc4 {[%clk 0:00:09.5]} 26. Qd8+ {[%clk
0:00:55.7]} 26... Kg7 {[%clk 0:00:08]} 27. Rd7+ {[%clk 0:00:51.6]} 27... Rxd7
{[%clk 0:00:09.1]} 28. Qxd7+ {[%clk 0:00:52.1]} 28... Kf8 {[%clk 0:00:10.3]} 29.
Qxa7 {[%clk 0:00:52.1]} 29... Qc1+ {[%clk 0:00:09.1]} 30. Kh2 {[%clk 0:00:51.1]}
30... Qf4+ {[%clk 0:00:10.4]} 31. g3 {[%clk 0:00:51.8]} 31... Qe4 {[%clk
0:00:07]} 32. a5 {[%clk 0:00:50.2]} 32... Qe2 {[%clk 0:00:05]} 33. Qb6 {[%clk
0:00:45.3]} 33... Kf7 {[%clk 0:00:05]} 34. a6 {[%clk 0:00:45.1]} 34... Qf3
{[%clk 0:00:02.8]} 35. a7 {[%clk 0:00:44.8]} 35... Kg6 {[%clk 0:00:02.9]} 36. h4
{[%clk 0:00:41.5]} 36... h5 {[%clk 0:00:03.8]} 37. Qd4 {[%clk 0:00:30.8]} 37...
Qb7 {[%clk 0:00:02.8]} 38. Qe3 {[%clk 0:00:27.5]} 38... Kg7 {[%clk 0:00:03.1]}
39. Qd4 {[%clk 0:00:25.4]} 39... Kg6 {[%clk 0:00:03.3]} 40. g4 {[%clk 0:00:26]}
1

[Event "Torneo Nuevo Centro. Jornada 11"]
[Site "Chess.com"]
[Date "2020.08.28"]
[Round "5"]
[White "Perez Garcia, Jose Miguel"]
[Black "Gutierrez Marco, Dario"]
[Result "1/2-1/2"]
[WhiteElo "2027"]
[BlackElo "1834"]
[TimeControl "180+2"]
[EndTime "11:22:26 PDT"]
[Termination "Tablas por repeticiÃ³n"]

1. d4 {[%clk 0:02:48.9]} 1... Nf6 {[%clk 0:02:58.2]} 2. c4 {[%clk 0:02:49.8]}
2... c5 {[%clk 0:02:58.2]} 3. d5 {[%clk 0:02:48.4]} 3... e6 {[%clk 0:02:58.6]}
4. f3 {[%clk 0:02:45.5]} 4... exd5 {[%clk 0:02:58.8]} 5. cxd5 {[%clk 0:02:47.4]}
5... d6 {[%clk 0:03:00.2]} 6. e4 {[%clk 0:02:47.1]} 6... g6 {[%clk 0:03:01.1]}
7. Nc3 {[%clk 0:02:48.2]} 7... Bg7 {[%clk 0:03:02.1]} 8. Bg5 {[%clk 0:02:48.4]}
8... O-O {[%clk 0:03:02.4]} 9. Qd2 {[%clk 0:02:49]} 9... a6 {[%clk 0:03:02.9]}
10. a4 {[%clk 0:02:45.9]} 10... Nbd7 {[%clk 0:03:03.4]} 11. Bd3 {[%clk
0:02:45.6]} 11... Qc7 {[%clk 0:03:01.9]} 12. Nge2 {[%clk 0:02:43.8]} 12... Re8
{[%clk 0:03:00.8]} 13. O-O {[%clk 0:02:44.3]} 13... Ne5 {[%clk 0:02:54.2]} 14.
Ng3 {[%clk 0:02:42.9]} 14... Nxd3 {[%clk 0:02:49.6]} 15. Qxd3 {[%clk 0:02:44.8]}
15... Bd7 {[%clk 0:02:46.1]} 16. a5 {[%clk 0:02:44.3]} 16... b5 {[%clk
0:02:38.6]} 17. axb6 {[%clk 0:02:44.6]} 17... Qxb6 {[%clk 0:02:19.6]} 18. Qd2
{[%clk 0:02:42.1]} 18... Reb8 {[%clk 0:02:15.2]} 19. Rfb1 {[%clk 0:02:41.1]}
19... a5 {[%clk 0:02:11.9]} 20. Nh1 {[%clk 0:02:38.9]} 20... a4 {[%clk 0:02:10]}
21. Nf2 {[%clk 0:02:39.9]} 21... Qc7 {[%clk 0:01:45.1]} 22. Nfd1 {[%clk
0:02:38.1]} 22... Rb3 {[%clk 0:01:41.3]} 23. Ra2 {[%clk 0:02:36.7]} 23... a3
{[%clk 0:01:38.3]} 24. bxa3 {[%clk 0:02:34]} 24... Rbxa3 {[%clk 0:01:38.1]} 25.
Rxa3 {[%clk 0:02:33.1]} 25... Rxa3 {[%clk 0:01:40]} 26. Qb2 {[%clk 0:02:30.6]}
26... Ra8 {[%clk 0:01:36.8]} 27. Qb7 {[%clk 0:02:29.5]} 27... Qxb7 {[%clk
0:01:14.3]} 28. Rxb7 {[%clk 0:02:31.4]} 28... Ra1 {[%clk 0:01:11.5]} 29. Rb8+
{[%clk 0:02:25.6]} 29... Ne8 {[%clk 0:01:11.5]} 30. Kf2 {[%clk 0:02:24]} 30...
Bd4+ {[%clk 0:01:12.1]} 31. Be3 {[%clk 0:02:22.5]} 31... Kg7 {[%clk 0:00:52.6]}
32. Rd8 {[%clk 0:02:20.1]} 32... Ra7 {[%clk 0:00:45.5]} 33. Bxd4+ {[%clk
0:02:18.8]} 33... cxd4 {[%clk 0:00:46]} 34. Ne2 {[%clk 0:02:20.1]} 34... d3
{[%clk 0:00:42.5]} 35. Nec3 {[%clk 0:02:19.2]} 35... Nf6 {[%clk 0:00:43.3]} 36.
Ke3 {[%clk 0:02:17.7]} 36... Ra3 {[%clk 0:00:35.8]} 37. Kxd3 {[%clk 0:02:16.1]}
37... Bb5+ {[%clk 0:00:37.2]} 38. Kc2 {[%clk 0:02:13.7]} 38... Bf1 {[%clk
0:00:36.4]} 39. g3 {[%clk 0:02:11.4]} 39... Bg2 {[%clk 0:00:35.5]} 40. Rxd6
{[%clk 0:02:10.3]} 40... Bxf3 {[%clk 0:00:36.7]} 41. e5 {[%clk 0:02:10]} 41...
Ne4 {[%clk 0:00:17.3]} 42. Rd7 {[%clk 0:01:57.7]} 42... Nxc3 {[%clk 0:00:10.5]}
43. Nxc3 {[%clk 0:01:58.3]} 43... Ra5 {[%clk 0:00:09.6]} 44. e6 {[%clk
0:01:58.4]} 44... Kh6 {[%clk 0:00:07.5]} 45. Rxf7 {[%clk 0:01:58.3]} 45... Bxd5
{[%clk 0:00:07.4]} 46. Re7 {[%clk 0:01:48.9]} 46... Bc4 {[%clk 0:00:05.6]} 47.
Re8 {[%clk 0:01:46.1]} 47... Re5 {[%clk 0:00:06.2]} 48. e7 {[%clk 0:01:33.3]}
48... Bf7 {[%clk 0:00:07]} 49. Rf8 {[%clk 0:01:32.6]} 49... Rxe7 {[%clk
0:00:07.7]} 50. Kd3 {[%clk 0:01:32.9]} 50... Rd7+ {[%clk 0:00:07.5]} 51. Ke3
{[%clk 0:01:31.9]} 51... Kg7 {[%clk 0:00:08.7]} 52. Rb8 {[%clk 0:01:30.4]} 52...
Re7+ {[%clk 0:00:08.1]} 53. Kd4 {[%clk 0:01:26.2]} 53... Rd7+ {[%clk 0:00:09]}
54. Ke3 {[%clk 0:01:24.4]} 54... Re7+ {[%clk 0:00:10.1]} 55. Kf2 {[%clk
0:01:25.4]} 55... Rc7 {[%clk 0:00:10.6]} 56. Ne2 {[%clk 0:01:25.4]} 56... Rc2
{[%clk 0:00:10.8]} 57. Ke3 {[%clk 0:01:26.4]} 57... Ra2 {[%clk 0:00:10.2]} 58.
Rb7 {[%clk 0:01:25.3]} 58... Ra3+ {[%clk 0:00:10.1]} 59. Kf2 {[%clk 0:01:25.5]}
59... Ra2 {[%clk 0:00:11.2]} 60. Ke3 {[%clk 0:01:26.4]} 60... Ra3+ {[%clk
0:00:12.3]} 61. Kf2 {[%clk 0:01:27.7]} 61... Ra2 {[%clk 0:00:13.7]} 62. Ke3
{[%clk 0:01:29]} 1/2-1

[Event "Torneo Nuevo Centro. Jornada 11"]
[Site "Chess.com"]
[Date "2020.08.28"]
[Round "5"]
[White "Roca Cruz, Rafael"]
[Black "Carbonell Bofill, Carlos Eloy"]
[Result "1/2-1/2"]
[WhiteElo "1810"]
[BlackElo "1912"]
[TimeControl "180+2"]
[EndTime "11:22:35 PDT"]
[Termination "Tablas por repeticiÃ³n"]

1. d4 {[%clk 0:03:00]} 1... Nf6 {[%clk 0:02:56.9]} 2. c4 {[%clk 0:03:00.5]} 2...
g6 {[%clk 0:02:54.7]} 3. Nc3 {[%clk 0:03:00.9]} 3... d5 {[%clk 0:02:54.9]} 4.
cxd5 {[%clk 0:03:01.9]} 4... Nxd5 {[%clk 0:02:56.8]} 5. Bd2 {[%clk 0:03:03.1]}
5... Bg7 {[%clk 0:02:56.7]} 6. e4 {[%clk 0:03:04]} 6... Nb6 {[%clk 0:02:48.3]}
7. Be3 {[%clk 0:03:04.5]} 7... O-O {[%clk 0:02:48.2]} 8. h3 {[%clk 0:02:59.9]}
8... Nc6 {[%clk 0:02:43.2]} 9. Nf3 {[%clk 0:03:00.5]} 9... f5 {[%clk 0:02:33.2]}
10. e5 {[%clk 0:02:02.9]} 10... f4 {[%clk 0:02:32.1]} 11. Bc1 {[%clk 0:02:04.1]}
11... h6 {[%clk 0:02:21.6]} 12. b3 {[%clk 0:01:30.7]} 12... g5 {[%clk
0:01:59.5]} 13. Bb2 {[%clk 0:01:28.5]} 13... Bf5 {[%clk 0:01:53.8]} 14. a3
{[%clk 0:01:11.3]} 14... e6 {[%clk 0:01:49]} 15. Bd3 {[%clk 0:00:47.5]} 15...
Bxd3 {[%clk 0:01:48.2]} 16. Qxd3 {[%clk 0:00:48.1]} 16... Qd7 {[%clk 0:01:15.8]}
17. Qg6 {[%clk 0:00:32]} 17... Ne7 {[%clk 0:01:03.2]} 18. Qe4 {[%clk 0:00:25.5]}
18... Nbd5 {[%clk 0:01:00.1]} 19. O-O {[%clk 0:00:20.1]} 19... Rad8 {[%clk
0:00:59.4]} 20. Rfd1 {[%clk 0:00:20.6]} 20... c6 {[%clk 0:00:58.3]} 21. Rac1
{[%clk 0:00:19.9]} 21... Nf5 {[%clk 0:00:57.1]} 22. Nxd5 {[%clk 0:00:18.6]}
22... exd5 {[%clk 0:00:55.3]} 23. Qe2 {[%clk 0:00:18]} 23... Rde8 {[%clk
0:00:54.6]} 24. Nh2 {[%clk 0:00:17.1]} 24... Re6 {[%clk 0:00:54.1]} 25. Ng4
{[%clk 0:00:15.7]} 25... Nh4 {[%clk 0:00:49.2]} 26. Qd3 {[%clk 0:00:11.5]} 26...
h5 {[%clk 0:00:45.4]} 27. Nh2 {[%clk 0:00:11.1]} 27... Rh6 {[%clk 0:00:40.9]}
28. Nf3 {[%clk 0:00:11.7]} 28... Nxf3+ {[%clk 0:00:35.8]} 29. Qxf3 {[%clk
0:00:12.5]} 29... g4 {[%clk 0:00:37.2]} 30. Qd3 {[%clk 0:00:10.8]} 30... gxh3
{[%clk 0:00:37.6]} 31. Qxh3 {[%clk 0:00:11.4]} 31... Qxh3 {[%clk 0:00:37.9]} 32.
gxh3 {[%clk 0:00:13.3]} 32... f3 {[%clk 0:00:37.9]} 33. Kh2 {[%clk 0:00:11.6]}
33... Rf4 {[%clk 0:00:37.4]} 34. Rg1 {[%clk 0:00:11.9]} 34... Kf7 {[%clk
0:00:38]} 35. Rg3 {[%clk 0:00:12.6]} 35... h4 {[%clk 0:00:37.7]} 36. Rg4 {[%clk
0:00:12]} 36... Rxg4 {[%clk 0:00:35.2]} 37. hxg4 {[%clk 0:00:13]} 37... Kg6
{[%clk 0:00:32.7]} 38. Rc3 {[%clk 0:00:11.4]} 38... Kg5 {[%clk 0:00:29.5]} 39.
Bc1+ {[%clk 0:00:12.3]} 39... Kxg4 {[%clk 0:00:30.1]} 40. Bxh6 {[%clk
0:00:13.3]} 40... Bxh6 {[%clk 0:00:32]} 41. Re3 {[%clk 0:00:10.1]} 41... Bxe3
{[%clk 0:00:29.4]} 42. fxe3 {[%clk 0:00:11.4]} 42... Kf5 {[%clk 0:00:28.2]} 43.
b4 {[%clk 0:00:10.4]} 43... b5 {[%clk 0:00:27.7]} 44. Kh3 {[%clk 0:00:10.9]}
44... Ke6 {[%clk 0:00:25.7]} 45. Kh2 {[%clk 0:00:10.5]} 45... Kf5 {[%clk
0:00:23]} 46. Kh3 {[%clk 0:00:11.6]} 46... Ke6 {[%clk 0:00:24]} 47. Kh2 {[%clk
0:00:12.6]} 47... Kf5 {[%clk 0:00:21.5]} 1/2-1